[Event "*** Titled Tuesday Blitz"]
[Site "Chess.com"]
[Date "2020.11.10"]
[Round "4"]
[White "Kazmin_Dmitrij"]
[Black "Shuvalov"]
[Result "1/2-1/2"]
[WhiteElo "2271"]
[BlackElo "2441"]
[TimeControl "180+1"]
[EndTime "10:42:52 PST"]
[Termination "Game drawn by repetition"]

1. e4 {[%clk 0:03:00.9]} 1... e6 {[%clk 0:02:59.8]} 2. Nf3 {[%clk 0:03:00]} 2...
d5 {[%clk 0:03:00.3]} 3. e5 {[%clk 0:02:59.3]} 3... c5 {[%clk 0:03:00.1]} 4. b4
{[%clk 0:02:59.3]} 4... cxb4 {[%clk 0:03:01]} 5. a3 {[%clk 0:02:59.6]} 5... Bd7
{[%clk 0:03:01.6]} 6. axb4 {[%clk 0:02:59]} 6... Bxb4 {[%clk 0:03:02.5]} 7. c3
{[%clk 0:02:59.3]} 7... Ba5 {[%clk 0:03:02.3]} 8. d4 {[%clk 0:02:59.2]} 8... Qb6
{[%clk 0:03:02.8]} 9. Bd3 {[%clk 0:02:54.2]} 9... Bb5 {[%clk 0:03:03.2]} 10. O-O
{[%clk 0:02:50.6]} 10... Nc6 {[%clk 0:03:03.2]} 11. Bxb5 {[%clk 0:02:46.3]}
11... Qxb5 {[%clk 0:03:04.1]} 12. Na3 {[%clk 0:02:44.9]} 12... Qb6 {[%clk
0:03:01.4]} 13. Rb1 {[%clk 0:02:41.9]} 13... Qc7 {[%clk 0:02:58.8]} 14. Nb5
{[%clk 0:02:41.8]} 14... Qd8 {[%clk 0:02:53.8]} 15. Nd6+ {[%clk 0:02:42.2]}
15... Kf8 {[%clk 0:02:54.1]} 16. Nxb7 {[%clk 0:02:35.1]} 16... Qc7 {[%clk
0:02:53.9]} 17. Ba3+ {[%clk 0:02:26.8]} 17... Nge7 {[%clk 0:02:53]} 18. Bd6
{[%clk 0:02:24.8]} 18... Qc8 {[%clk 0:02:47.7]} 19. Nxa5 {[%clk 0:02:09.1]}
19... Nxa5 {[%clk 0:02:48.6]} 20. Qa4 {[%clk 0:02:05.7]} 20... Nc4 {[%clk
0:02:43.4]} 21. Rb3 {[%clk 0:01:36]} 21... Nxd6 {[%clk 0:02:29.8]} 22. exd6
{[%clk 0:01:35.9]} 22... Ng6 {[%clk 0:02:30.4]} 23. Rfb1 {[%clk 0:01:26.5]}
23... h6 {[%clk 0:02:20.7]} 24. d7 {[%clk 0:01:21.9]} 24... Qd8 {[%clk
0:02:15.1]} 25. Qc6 {[%clk 0:01:05.2]} 25... Kg8 {[%clk 0:02:04.5]} 26. h4
{[%clk 0:00:38.4]} 26... Kh7 {[%clk 0:01:59.5]} 27. h5 {[%clk 0:00:37]} 27...
Ne7 {[%clk 0:01:59]} 28. Qd6 {[%clk 0:00:35.6]} 28... Nf5 {[%clk 0:01:58.7]} 29.
Qc6 {[%clk 0:00:30.5]} 29... a5 {[%clk 0:01:55.6]} 30. Ne5 {[%clk 0:00:29.7]}
30... Rf8 {[%clk 0:01:53.2]} 31. g4 {[%clk 0:00:28.5]} 31... Ne7 {[%clk
0:01:48.6]} 32. Qd6 {[%clk 0:00:28.4]} 32... a4 {[%clk 0:01:36]} 33. Ra3 {[%clk
0:00:26.2]} 33... f6 {[%clk 0:01:29]} 34. Nc6 {[%clk 0:00:21.6]} 34... Nxc6
{[%clk 0:01:28.4]} 35. Qxc6 {[%clk 0:00:21.9]} 35... Ra7 {[%clk 0:01:22.4]} 36.
Rb7 {[%clk 0:00:20.2]} 36... Rxb7 {[%clk 0:01:17.7]} 37. Qxb7 {[%clk 0:00:20.3]}
37... Rf7 {[%clk 0:01:18]} 38. Rxa4 {[%clk 0:00:19.1]} 38... Qxd7 {[%clk
0:01:17.5]} 39. Qxd7 {[%clk 0:00:18.4]} 39... Rxd7 {[%clk 0:01:18.4]} 40. Ra6
{[%clk 0:00:18.1]} 40... e5 {[%clk 0:01:14.4]} 41. Kg2 {[%clk 0:00:15.4]} 41...
Rc7 {[%clk 0:01:13.3]} 42. dxe5 {[%clk 0:00:14.7]} 42... fxe5 {[%clk 0:01:13.3]}
43. Rd6 {[%clk 0:00:13.3]} 43... Rxc3 {[%clk 0:01:12.1]} 44. Rxd5 {[%clk
0:00:12.3]} 44... Rc4 {[%clk 0:01:11.1]} 45. f3 {[%clk 0:00:09.4]} 45... e4
{[%clk 0:01:10.5]} 46. fxe4 {[%clk 0:00:08.4]} 46... Rxe4 {[%clk 0:01:11.4]} 47.
Kf3 {[%clk 0:00:08.2]} 47... Re6 {[%clk 0:01:10.8]} 48. Rf5 {[%clk 0:00:08.3]}
48... Kg8 {[%clk 0:01:09.6]} 49. Kf4 {[%clk 0:00:08.4]} 49... Re1 {[%clk
0:01:09.2]} 50. Kf3 {[%clk 0:00:08.1]} 50... Rf1+ {[%clk 0:01:08.8]} 51. Ke4
{[%clk 0:00:08.4]} 51... Rg1 {[%clk 0:01:08.6]} 52. Kf4 {[%clk 0:00:08.7]} 52...
Rc1 {[%clk 0:01:07.7]} 53. Ke4 {[%clk 0:00:08.8]} 53... Rc3 {[%clk 0:01:07.7]}
54. Kf4 {[%clk 0:00:08.6]} 54... Rb3 {[%clk 0:01:06.9]} 55. Ke4 {[%clk
0:00:08.5]} 55... Rb2 {[%clk 0:01:03.6]} 56. Kf4 {[%clk 0:00:08.5]} 56... Rf2+
{[%clk 0:00:57.5]} 57. Ke4 {[%clk 0:00:08.6]} 57... Re2+ {[%clk 0:00:56.8]} 58.
Kf4 {[%clk 0:00:09]} 58... Re7 {[%clk 0:00:57.3]} 59. Kf3 {[%clk 0:00:08.9]}
59... Rf7 {[%clk 0:00:56.8]} 60. Rxf7 {[%clk 0:00:08.3]} 60... Kxf7 {[%clk
0:00:57.7]} 61. Ke4 {[%clk 0:00:07.6]} 61... Ke6 {[%clk 0:00:57.5]} 62. Kf4
{[%clk 0:00:07.7]} 62... Kf6 {[%clk 0:00:57.8]} 63. Kf3 {[%clk 0:00:06.9]} 63...
Ke5 {[%clk 0:00:56.6]} 64. Ke3 {[%clk 0:00:06.5]} 64... Ke6 {[%clk 0:00:52.5]}
65. Ke4 {[%clk 0:00:06.7]} 65... Kf6 {[%clk 0:00:52.6]} 66. Kf4 {[%clk 0:00:07]}
66... Ke6 {[%clk 0:00:52.9]} 67. Ke4 {[%clk 0:00:07.2]} 67... Kf6 {[%clk
0:00:52.5]} 68. Kf4 {[%clk 0:00:07.5]} 68... Ke6 {[%clk 0:00:52.8]} 69. Ke4
{[%clk 0:00:07.7]} 1/2-1/2

[Event "*** Titled Tuesday Blitz"]
[Site "Chess.com"]
[Date "2020.11.10"]
[Round "4"]
[White "azikom"]
[Black "ChristopherYoo"]
[Result "1/2-1/2"]
[WhiteElo "2562"]
[BlackElo "2842"]
[TimeControl "180+1"]
[EndTime "10:42:53 PST"]
[Termination "Game drawn by repetition"]

1. d4 {[%clk 0:02:59.4]} 1... Nf6 {[%clk 0:02:53.1]} 2. Nf3 {[%clk 0:02:57.9]}
2... g6 {[%clk 0:02:51.9]} 3. Nbd2 {[%clk 0:02:56.1]} 3... c5 {[%clk 0:02:39.2]}
4. e3 {[%clk 0:02:53.5]} 4... b6 {[%clk 0:02:33.1]} 5. b3 {[%clk 0:02:47.6]}
5... Bg7 {[%clk 0:02:32.8]} 6. Bb2 {[%clk 0:02:47.1]} 6... O-O {[%clk 0:02:33]}
7. Be2 {[%clk 0:02:45.9]} 7... Bb7 {[%clk 0:02:32.6]} 8. O-O {[%clk 0:02:45.6]}
8... Ne4 {[%clk 0:02:28.3]} 9. Nxe4 {[%clk 0:02:44.4]} 9... Bxe4 {[%clk
0:02:27.8]} 10. c4 {[%clk 0:02:44.1]} 10... Nc6 {[%clk 0:02:22.1]} 11. Qd2
{[%clk 0:02:37.7]} 11... d6 {[%clk 0:01:49.3]} 12. d5 {[%clk 0:02:36.5]} 12...
Bxb2 {[%clk 0:01:47.9]} 13. Qxb2 {[%clk 0:02:36.6]} 13... Bxf3 {[%clk
0:01:48.3]} 14. Bxf3 {[%clk 0:02:35.1]} 14... Ne5 {[%clk 0:01:47.9]} 15. Be2
{[%clk 0:02:35.2]} 15... Re8 {[%clk 0:01:42.7]} 16. f4 {[%clk 0:02:34.1]} 16...
Nd7 {[%clk 0:01:42.5]} 17. Rad1 {[%clk 0:02:34.3]} 17... Qc7 {[%clk 0:01:35]}
18. Bf3 {[%clk 0:02:23.6]} 18... Rab8 {[%clk 0:01:33]} 19. a4 {[%clk 0:02:19.5]}
19... a6 {[%clk 0:01:32.2]} 20. Be2 {[%clk 0:02:20]} 20... e6 {[%clk 0:01:31.4]}
21. dxe6 {[%clk 0:02:12.4]} 21... Rxe6 {[%clk 0:01:30.7]} 22. Qd2 {[%clk
0:02:12.7]} 22... Rbe8 {[%clk 0:01:23.1]} 23. Bg4 {[%clk 0:02:09]} 23... f5
{[%clk 0:01:14.9]} 24. Bf3 {[%clk 0:02:08.6]} 24... Nf6 {[%clk 0:01:13.5]} 25.
Rfe1 {[%clk 0:02:08.2]} 25... Kg7 {[%clk 0:01:11]} 26. h3 {[%clk 0:02:07.5]}
26... Qe7 {[%clk 0:01:00.7]} 27. Kf2 {[%clk 0:01:53.1]} 27... h6 {[%clk
0:00:57.3]} 28. Qc3 {[%clk 0:01:51.9]} 28... Kh7 {[%clk 0:00:56.5]} 29. Rd3
{[%clk 0:01:43.8]} 29... g5 {[%clk 0:00:49.3]} 30. Red1 {[%clk 0:01:31.3]} 30...
Ne4+ {[%clk 0:00:28.5]} 31. Bxe4 {[%clk 0:01:30.1]} 31... fxe4 {[%clk
0:00:20.2]} 32. Rd5 {[%clk 0:01:29.7]} 32... gxf4 {[%clk 0:00:20.2]} 33. exf4
{[%clk 0:01:29.4]} 33... e3+ {[%clk 0:00:21.1]} 34. Kg1 {[%clk 0:01:27.2]} 34...
Qh4 {[%clk 0:00:19.3]} 35. Qd3+ {[%clk 0:01:24]} 35... Kh8 {[%clk 0:00:09.6]}
36. f5 {[%clk 0:01:02.5]} 36... Re4 {[%clk 0:00:07.1]} 37. Qc3+ {[%clk
0:00:59.5]} 37... Kh7 {[%clk 0:00:05.7]} 38. Rxd6 {[%clk 0:00:53]} 38... e2
{[%clk 0:00:05.1]} 39. Rd7+ {[%clk 0:00:52.7]} 39... R8e7 {[%clk 0:00:05]} 40.
Rxe7+ {[%clk 0:00:52.7]} 40... Rxe7 {[%clk 0:00:05.1]} 41. Re1 {[%clk
0:00:52.7]} 41... Re3 {[%clk 0:00:02]} 42. Qd2 {[%clk 0:00:47.5]} 42... Rxh3
{[%clk 0:00:02.2]} 43. Qd7+ {[%clk 0:00:45.8]} 43... Kh8 {[%clk 0:00:02]} 44.
Qe8+ {[%clk 0:00:45.5]} 44... Kh7 {[%clk 0:00:02.2]} 45. Qg6+ {[%clk 0:00:45.2]}
45... Kh8 {[%clk 0:00:02.1]} 46. Qe8+ {[%clk 0:00:28.8]} 46... Kh7 {[%clk
0:00:02.5]} 47. Qf7+ {[%clk 0:00:28.6]} 47... Kh8 {[%clk 0:00:02.5]} 48. Qf8+
{[%clk 0:00:28.4]} 48... Kh7 {[%clk 0:00:02.9]} 49. Qf7+ {[%clk 0:00:28.1]}
49... Kh8 {[%clk 0:00:03.4]} 50. Qf8+ {[%clk 0:00:16.1]} 50... Kh7 {[%clk
0:00:03]} 51. Qf7+ {[%clk 0:00:15.3]} 1/2-1/2

[Event "*** Titled Tuesday Blitz"]
[Site "Chess.com"]
[Date "2020.11.10"]
[Round "4"]
[White "PSvidler"]
[Black "NikolaGry"]
[Result "1-0"]
[WhiteElo "2880"]
[BlackElo "2622"]
[TimeControl "180+1"]
[EndTime "10:42:55 PST"]
[Termination "PSvidler won on time"]

1. Nf3 {[%clk 0:03:00.9]} 1... c5 {[%clk 0:02:56.1]} 2. e4 {[%clk 0:02:58.9]}
2... Nf6 {[%clk 0:02:55]} 3. e5 {[%clk 0:02:57.9]} 3... Nd5 {[%clk 0:02:55]} 4.
Nc3 {[%clk 0:02:58.5]} 4... e6 {[%clk 0:02:55.2]} 5. Nxd5 {[%clk 0:02:58.6]}
5... exd5 {[%clk 0:02:55.5]} 6. d4 {[%clk 0:02:59]} 6... Nc6 {[%clk 0:02:55.3]}
7. dxc5 {[%clk 0:02:59]} 7... Bxc5 {[%clk 0:02:55.3]} 8. Qxd5 {[%clk 0:02:59.6]}
8... d6 {[%clk 0:02:55.4]} 9. exd6 {[%clk 0:02:46.2]} 9... Qb6 {[%clk
0:02:54.1]} 10. Qe4+ {[%clk 0:02:31.7]} 10... Be6 {[%clk 0:02:43.9]} 11. Bc4
{[%clk 0:02:27.7]} 11... Bxf2+ {[%clk 0:02:03.7]} 12. Kf1 {[%clk 0:02:27.5]}
12... O-O-O {[%clk 0:01:38.5]} 13. Bxe6+ {[%clk 0:02:23.9]} 13... fxe6 {[%clk
0:01:38.1]} 14. Qxe6+ {[%clk 0:02:13.3]} 14... Kb8 {[%clk 0:01:37.5]} 15. Bf4
{[%clk 0:02:13.1]} 15... Rhf8 {[%clk 0:01:32]} 16. g3 {[%clk 0:02:01.9]} 16...
g5 {[%clk 0:00:59.6]} 17. Nxg5 {[%clk 0:02:01.5]} 17... Be3 {[%clk 0:00:55.5]}
18. Kg2 {[%clk 0:01:58.5]} 18... Bxf4 {[%clk 0:00:53]} 19. gxf4 {[%clk
0:01:59.4]} 19... Nd4 {[%clk 0:00:44.5]} 20. Qe7 {[%clk 0:01:38]} 20... Qc6+
{[%clk 0:00:38.5]} 21. Kh3 {[%clk 0:01:38.2]} 21... Qxc2 {[%clk 0:00:33.1]} 22.
Qc7+ {[%clk 0:01:36.5]} 22... Qxc7 {[%clk 0:00:33.2]} 23. dxc7+ {[%clk
0:01:36.5]} 23... Kxc7 {[%clk 0:00:33.5]} 24. Rac1+ {[%clk 0:01:30.3]} 24... Kb6
{[%clk 0:00:31]} 25. Rhf1 {[%clk 0:01:12]} 25... h6 {[%clk 0:00:29.4]} 26. Ne4
{[%clk 0:01:11.6]} 26... Ne2 {[%clk 0:00:29.2]} 27. Rc2 {[%clk 0:01:05.2]} 27...
Nxf4+ {[%clk 0:00:29]} 28. Kg4 {[%clk 0:01:05]} 28... h5+ {[%clk 0:00:27.6]} 29.
Kg3 {[%clk 0:01:01.6]} 29... Rd3+ {[%clk 0:00:23.8]} 30. Kf2 {[%clk 0:00:57.2]}
30... Nd5+ {[%clk 0:00:18.1]} 31. Kg1 {[%clk 0:00:57.5]} 31... Rxf1+ {[%clk
0:00:16.5]} 32. Kxf1 {[%clk 0:00:57.7]} 32... Ne3+ {[%clk 0:00:16.7]} 33. Ke2
{[%clk 0:00:58]} 33... Nxc2 {[%clk 0:00:17.2]} 34. Kxd3 {[%clk 0:00:58.3]} 34...
Nb4+ {[%clk 0:00:17.8]} 35. Kc4 {[%clk 0:00:57.6]} 35... Nxa2 {[%clk 0:00:18]}
36. h4 {[%clk 0:00:58]} 36... a5 {[%clk 0:00:17.6]} 37. Ng3 {[%clk 0:00:58.2]}
37... Nb4 {[%clk 0:00:17.9]} 38. Nxh5 {[%clk 0:00:58.4]} 38... Nc6 {[%clk
0:00:18.4]} 39. Nf6 {[%clk 0:00:55.1]} 39... Ne5+ {[%clk 0:00:13.8]} 40. Kd5
{[%clk 0:00:55.2]} 40... Ng6 {[%clk 0:00:13]} 41. h5 {[%clk 0:00:55.4]} 41...
Nf4+ {[%clk 0:00:13.2]} 42. Kc4 {[%clk 0:00:52.3]} 42... Kc6 {[%clk 0:00:12.3]}
43. h6 {[%clk 0:00:52.3]} 43... b5+ {[%clk 0:00:12.3]} 44. Kd4 {[%clk
0:00:51.9]} 44... Ng6 {[%clk 0:00:12.1]} 45. h7 {[%clk 0:00:52.1]} 45... a4
{[%clk 0:00:11.6]} 46. Kc3 {[%clk 0:00:51.5]} 46... Kc5 {[%clk 0:00:11]} 47.
Ne4+ {[%clk 0:00:51.6]} 47... Kd5 {[%clk 0:00:10.9]} 48. Nf2 {[%clk 0:00:51.1]}
48... Kc5 {[%clk 0:00:08.7]} 49. Nd3+ {[%clk 0:00:50.8]} 49... Kb6 {[%clk
0:00:08.1]} 50. Kb4 {[%clk 0:00:50.9]} 50... Nh8 {[%clk 0:00:07.9]} 51. Ne5
{[%clk 0:00:51]} 51... Ka6 {[%clk 0:00:06.4]} 52. Kc5 {[%clk 0:00:51.4]} 52...
a3 {[%clk 0:00:04.4]} 53. bxa3 {[%clk 0:00:51.3]} 53... Ka5 {[%clk 0:00:04.8]}
54. Nc6+ {[%clk 0:00:49.1]} 54... Ka4 {[%clk 0:00:04.6]} 55. Nd4 {[%clk
0:00:49]} 55... Kxa3 {[%clk 0:00:04.1]} 56. Kxb5 {[%clk 0:00:48.7]} 56... Kb2
{[%clk 0:00:04]} 57. Kc4 {[%clk 0:00:48.8]} 57... Ka3 {[%clk 0:00:03.8]} 58. Ne6
{[%clk 0:00:48]} 58... Ka4 {[%clk 0:00:03.6]} 59. Kd5 {[%clk 0:00:47]} 59... Kb5
{[%clk 0:00:02.7]} 60. Kd6 {[%clk 0:00:44.9]} 60... Kc4 {[%clk 0:00:02.5]} 61.
Ke5 {[%clk 0:00:45]} 61... Kb5 {[%clk 0:00:01.7]} 62. Ng5 {[%clk 0:00:44.4]}
62... Kc6 {[%clk 0:00:02]} 63. Kf6 {[%clk 0:00:44.7]} 63... Kd6 {[%clk
0:00:02.2]} 64. Nf7+ {[%clk 0:00:45]} 1-0

[Event "*** Titled Tuesday Blitz"]
[Site "Chess.com"]
[Date "2020.11.10"]
[Round "4"]
[White "Goryachkina"]
[Black "KuzubovYuriy"]
[Result "0-1"]
[WhiteElo "2592"]
[BlackElo "2833"]
[TimeControl "180+1"]
[EndTime "10:42:56 PST"]
[Termination "KuzubovYuriy won on time"]

1. e4 {[%clk 0:02:59.7]} 1... c6 {[%clk 0:02:57.5]} 2. d4 {[%clk 0:02:58.9]}
2... d5 {[%clk 0:02:57.8]} 3. exd5 {[%clk 0:02:59.2]} 3... cxd5 {[%clk 0:02:58]}
4. Bd3 {[%clk 0:02:59.5]} 4... g6 {[%clk 0:02:55.4]} 5. c3 {[%clk 0:02:55.8]}
5... Nh6 {[%clk 0:02:52.2]} 6. Nf3 {[%clk 0:02:54.4]} 6... Bg7 {[%clk
0:02:50.7]} 7. O-O {[%clk 0:02:54.3]} 7... Nc6 {[%clk 0:02:49.5]} 8. Re1 {[%clk
0:02:53.3]} 8... O-O {[%clk 0:02:47.5]} 9. h3 {[%clk 0:02:51.2]} 9... Kh8 {[%clk
0:02:39.8]} 10. Bf4 {[%clk 0:02:28.1]} 10... f6 {[%clk 0:02:38.6]} 11. c4 {[%clk
0:02:23.2]} 11... dxc4 {[%clk 0:02:29.9]} 12. Bxc4 {[%clk 0:02:22.7]} 12... e5
{[%clk 0:02:28.6]} 13. Bxh6 {[%clk 0:02:18.9]} 13... Bxh6 {[%clk 0:02:27.2]} 14.
dxe5 {[%clk 0:02:15.9]} 14... fxe5 {[%clk 0:02:14.9]} 15. Qxd8 {[%clk
0:02:10.6]} 15... Rxd8 {[%clk 0:02:13]} 16. Nc3 {[%clk 0:02:08.5]} 16... Bf5
{[%clk 0:01:52]} 17. Nxe5 {[%clk 0:01:59.2]} 17... Nxe5 {[%clk 0:01:50.3]} 18.
Rxe5 {[%clk 0:01:59.9]} 18... Rac8 {[%clk 0:01:42.7]} 19. Be6 {[%clk 0:01:26.2]}
19... Bxe6 {[%clk 0:01:30.1]} 20. Rxe6 {[%clk 0:01:26.3]} 20... Rd2 {[%clk
0:01:30.5]} 21. Rae1 {[%clk 0:01:07.1]} 21... Rxb2 {[%clk 0:01:20.3]} 22. Re8+
{[%clk 0:01:07.1]} 22... Rxe8 {[%clk 0:01:19.6]} 23. Rxe8+ {[%clk 0:01:07.8]}
23... Kg7 {[%clk 0:01:20.2]} 24. Re7+ {[%clk 0:01:08.1]} 24... Kf8 {[%clk
0:01:06.5]} 25. Rd7 {[%clk 0:00:43.7]} 25... Bg7 {[%clk 0:01:03.5]} 26. Ne4
{[%clk 0:00:41]} 26... h6 {[%clk 0:00:45.3]} 27. a4 {[%clk 0:00:36]} 27... Rb4
{[%clk 0:00:36.1]} 28. Nc5 {[%clk 0:00:35.4]} 28... Be5 {[%clk 0:00:27.2]} 29.
Rxb7 {[%clk 0:00:27.4]} 29... Rxb7 {[%clk 0:00:22.4]} 30. Nxb7 {[%clk
0:00:27.4]} 30... Ke7 {[%clk 0:00:23]} 31. Kf1 {[%clk 0:00:23]} 31... Kd7 {[%clk
0:00:22.5]} 32. Nc5+ {[%clk 0:00:21.9]} 32... Kc6 {[%clk 0:00:21.4]} 33. Nd3
{[%clk 0:00:20.5]} 33... Bd6 {[%clk 0:00:20.8]} 34. f4 {[%clk 0:00:19.3]} 34...
Kd5 {[%clk 0:00:17.7]} 35. Ke2 {[%clk 0:00:19.6]} 35... Ke4 {[%clk 0:00:17.4]}
36. g3 {[%clk 0:00:19.5]} 36... h5 {[%clk 0:00:17.8]} 37. h4 {[%clk 0:00:13.5]}
37... Kd4 {[%clk 0:00:16.4]} 38. Nf2 {[%clk 0:00:10]} 38... a5 {[%clk
0:00:13.4]} 39. Kf3 {[%clk 0:00:09.7]} 39... Kc4 {[%clk 0:00:12.4]} 40. Ne4
{[%clk 0:00:09.6]} 40... Bb4 {[%clk 0:00:12]} 41. g4 {[%clk 0:00:09.6]} 41...
Kb3 {[%clk 0:00:10.5]} 42. f5 {[%clk 0:00:08.5]} 42... hxg4+ {[%clk 0:00:09.8]}
43. Kxg4 {[%clk 0:00:08.7]} 43... gxf5+ {[%clk 0:00:10.7]} 44. Kxf5 {[%clk
0:00:08.9]} 44... Kxa4 {[%clk 0:00:11.4]} 45. h5 {[%clk 0:00:09.2]} 45... Bf8
{[%clk 0:00:11.5]} 46. Kf6 {[%clk 0:00:05.3]} 46... Kb4 {[%clk 0:00:09.4]} 47.
Kf7 {[%clk 0:00:04.7]} 47... a4 {[%clk 0:00:06.1]} 48. Kxf8 {[%clk 0:00:02.7]}
48... a3 {[%clk 0:00:06.3]} 49. h6 {[%clk 0:00:01.1]} 49... a2 {[%clk
0:00:06.7]} 0-1

[Event "*** Titled Tuesday Blitz"]
[Site "Chess.com"]
[Date "2020.11.10"]
[Round "4"]
[White "bascheyaro"]
[Black "lolo9292"]
[Result "1-0"]
[WhiteElo "2740"]
[BlackElo "2535"]
[TimeControl "180+1"]
[EndTime "10:42:56 PST"]
[Termination "bascheyaro won by resignation"]

1. d4 {[%clk 0:03:00.9]} 1... Nf6 {[%clk 0:02:59.4]} 2. Bf4 {[%clk 0:02:59.9]}
2... g6 {[%clk 0:02:59.3]} 3. e3 {[%clk 0:03:00.3]} 3... Bg7 {[%clk 0:02:59.4]}
4. Nf3 {[%clk 0:03:00.9]} 4... d6 {[%clk 0:03:00]} 5. Be2 {[%clk 0:03:01.4]}
5... O-O {[%clk 0:03:00.9]} 6. O-O {[%clk 0:03:01.6]} 6... Nbd7 {[%clk
0:03:01.5]} 7. h3 {[%clk 0:03:01.7]} 7... b6 {[%clk 0:03:02.4]} 8. a4 {[%clk
0:03:00.8]} 8... a6 {[%clk 0:03:02.9]} 9. a5 {[%clk 0:02:58.7]} 9... b5 {[%clk
0:03:02.5]} 10. b3 {[%clk 0:02:58.8]} 10... Bb7 {[%clk 0:03:02.1]} 11. c4 {[%clk
0:02:59]} 11... bxc4 {[%clk 0:03:02.2]} 12. bxc4 {[%clk 0:02:59.9]} 12... Nh5
{[%clk 0:03:01.2]} 13. Bh2 {[%clk 0:02:59.3]} 13... c5 {[%clk 0:03:01.3]} 14.
Nc3 {[%clk 0:02:59.1]} 14... Rb8 {[%clk 0:03:01]} 15. Qc2 {[%clk 0:02:44.4]}
15... cxd4 {[%clk 0:03:00.4]} 16. Nxd4 {[%clk 0:02:43.1]} 16... Nhf6 {[%clk
0:02:58.4]} 17. Rfb1 {[%clk 0:02:41]} 17... Nc5 {[%clk 0:02:57.5]} 18. Ra2
{[%clk 0:01:55.4]} 18... Qd7 {[%clk 0:02:38.5]} 19. Rab2 {[%clk 0:01:52.2]}
19... Rbc8 {[%clk 0:02:36.1]} 20. Rb6 {[%clk 0:01:47.7]} 20... Ba8 {[%clk
0:02:35.5]} 21. Qa2 {[%clk 0:01:40.2]} 21... Nfe4 {[%clk 0:02:32]} 22. Nxe4
{[%clk 0:01:26.5]} 22... Bxe4 {[%clk 0:02:32.9]} 23. Rc1 {[%clk 0:01:22.4]}
23... Rc7 {[%clk 0:02:20.3]} 24. Nb3 {[%clk 0:01:17.9]} 24... Na4 {[%clk
0:02:00.9]} 25. Rxa6 {[%clk 0:01:08]} 25... Nc3 {[%clk 0:01:59.6]} 26. Qd2
{[%clk 0:01:03.3]} 26... Nxe2+ {[%clk 0:01:58.1]} 27. Qxe2 {[%clk 0:01:04.2]}
27... Rcc8 {[%clk 0:01:55.7]} 28. Rb6 {[%clk 0:00:59]} 28... Qa7 {[%clk
0:01:51.2]} 29. Bg3 {[%clk 0:00:46.5]} 29... Rc7 {[%clk 0:01:48.1]} 30. c5
{[%clk 0:00:45.7]} 30... Rfc8 {[%clk 0:01:44.5]} 31. Rd1 {[%clk 0:00:44.6]}
31... Qa8 {[%clk 0:01:36.5]} 32. f3 {[%clk 0:00:41.7]} 32... Bd5 {[%clk
0:01:35.9]} 33. cxd6 {[%clk 0:00:37.6]} 33... exd6 {[%clk 0:01:34.3]} 34. Bxd6
{[%clk 0:00:31.7]} 34... Rc2 {[%clk 0:01:34.2]} 35. Rd2 {[%clk 0:00:32.1]} 35...
Rxd2 {[%clk 0:01:28.1]} 36. Qxd2 {[%clk 0:00:33]} 36... Bh6 {[%clk 0:01:12.2]}
37. Bf4 {[%clk 0:00:22.8]} 37... Bf8 {[%clk 0:01:09.5]} 38. Kh2 {[%clk
0:00:20.3]} 38... h6 {[%clk 0:01:08.1]} 39. e4 {[%clk 0:00:20]} 39... Be6 {[%clk
0:01:04.8]} 40. Nd4 {[%clk 0:00:20]} 40... Bd7 {[%clk 0:00:56.3]} 41. Nb5 {[%clk
0:00:18.3]} 41... Rd8 {[%clk 0:00:52.8]} 42. Nc7 {[%clk 0:00:17.9]} 42... Qc8
{[%clk 0:00:52.3]} 43. Nd5 {[%clk 0:00:18.2]} 43... Be6 {[%clk 0:00:47.7]} 44.
Rb8 {[%clk 0:00:18.2]} 44... Qxb8 {[%clk 0:00:39]} 45. Bxb8 {[%clk 0:00:19.1]}
45... Rxb8 {[%clk 0:00:39.8]} 46. Nf6+ {[%clk 0:00:16.9]} 46... Kh8 {[%clk
0:00:36.9]} 47. Qd4 {[%clk 0:00:15.9]} 47... Bg7 {[%clk 0:00:36]} 48. a6 {[%clk
0:00:16.2]} 48... Ra8 {[%clk 0:00:33.3]} 49. a7 {[%clk 0:00:16.7]} 49... h5
{[%clk 0:00:32.9]} 50. g4 {[%clk 0:00:16.8]} 50... hxg4 {[%clk 0:00:31.6]} 51.
hxg4 {[%clk 0:00:17.7]} 51... Rc8 {[%clk 0:00:31.8]} 52. g5 {[%clk 0:00:17.5]}
52... Bf8 {[%clk 0:00:29.6]} 53. Kg3 {[%clk 0:00:13.3]} 53... Bc5 {[%clk
0:00:27.3]} 54. Qb2 {[%clk 0:00:12.7]} 54... Bd6+ {[%clk 0:00:25.8]} 55. e5
{[%clk 0:00:13]} 55... Bc7 {[%clk 0:00:24.7]} 56. Qh2+ {[%clk 0:00:10.2]} 56...
Kg7 {[%clk 0:00:25.2]} 57. Qh7+ {[%clk 0:00:10.7]} 57... Kf8 {[%clk 0:00:25.7]}
58. Qh8+ {[%clk 0:00:11.4]} 58... Ke7 {[%clk 0:00:25.8]} 59. Qxc8 {[%clk
0:00:12]} 59... Bxc8 {[%clk 0:00:25.2]} 60. a8=Q {[%clk 0:00:12.1]} 60... Bxe5+
{[%clk 0:00:26.1]} 61. f4 {[%clk 0:00:12.5]} 61... Be6 {[%clk 0:00:27]} 62. fxe5
{[%clk 0:00:12.2]} 1-0